bitfinex/quotes_SOLUSD_20240604
["timestamp","ask_amount","ask_price","bid_price","bid_amount"]
[1717460592321,2.2489,164.52,164.48,9.12309647]
[1717460592468,7.3288,164.53,164.48,9.12309647]
[1717460593013,5.08,164.53,164.48,11.37249647]
[1717460593294,7.3287,164.54,164.49,9.12309647]
[1717460593799,20.0,164.53,164.49,9.12275524]
[1717460594567,22.2488,164.53,164.49,9.12275524]
[1717460594895,22.2488,164.53,164.48,14.20275524]
[1717460595194,27.3288,164.53,164.48,11.37215524]
[1717460595572,22.2488,164.53,164.48,11.37215524]
[1717460595782,22.2488,164.53,164.48,16.45215524]
[1717460595992,20.0,164.53,164.48,11.37215524]
[1717460596497,20.0,164.53,164.49,2.2492]
[1717460596672,20.0,164.53,164.49,11.37195524]
[1717460597299,20.0,164.53,164.5,9.12275524]
[1717460598280,2.2487,164.54,164.5,9.12275524]
[1717460598798,22.2487,164.54,164.5,9.12275524]
[1717460599195,2.2487,164.54,164.5,9.12275524]
[1717460599397,2.2485,164.55,164.5,11.37195524]
[1717460599583,2.2485,164.55,164.5,9.12275524]
[1717460599999,27.3285,164.55,164.5,9.12275524]
[1717460600299,20.0,164.55,164.5,9.12275524]
[1717460600514,5.08,164.53,164.5,9.12275524]
[1717460600683,26.6148,164.55,164.5,9.12275524]
[1717460600879,5.08,164.53,164.49,9.12275524]
[1717460601079,2.2489,164.52,164.49,9.12275524]
[1717460601781,2.2489,164.52,164.48,9.12275524]
[1717460602405,7.3288,164.53,164.48,11.37215524]
[1717460603582,7.3288,164.53,164.48,9.12275524]
[1717460603889,5.08,164.53,164.48,9.12275524]
[1717460604097,22.249,164.52,164.48,9.12275524]
[1717460604792,20.0,164.52,164.48,22.74975524]
[1717460605119,2.2487,164.54,164.49,7.3292]
[1717460605331,22.2483,164.57,164.51,2.249]
[1717460605621,2.2483,164.57,164.52,2.2488]
[1717460605801,22.2483,164.57,164.52,2.4188]
[1717460606200,2.2484,164.56,164.52,0.17]
[1717460606428,6.2055,164.6,164.52,0.17]
[1717460606601,26.57852404,164.61,164.53,5.08]
[1717460606917,2.2481,164.58,164.53,7.3287]
[1717460607309,5.08,164.6,164.54,5.08]
[1717460607509,2.2481,164.58,164.54,6.0517]
[1717460607716,2.2481,164.58,164.54,11.1317]
[1717460608522,2.2482,164.57,164.53,5.08]
[1717460608702,2.2482,164.57,164.52,2.2489]
[1717460609109,2.2482,164.57,164.52,7.3289]
[1717460610216,22.2481,164.58,164.53,7.4987]
[1717460610428,22.2481,164.58,164.53,14.0179]
[1717460610799,22.2481,164.58,164.53,7.4987]
[1717460611024,2.2481,164.58,164.53,7.4987]
[1717460611232,2.248,164.59,164.54,2.2486]
[1717460611403,2.2481,164.58,164.54,5.08]
[1717460611603,2.2481,164.58,164.53,14.1146]
[1717460612041,2.248,164.59,164.54,2.2486]
[1717460612259,2.248,164.59,164.54,7.3286]
[1717460612560,2.2481,164.58,164.54,5.08]
[1717460612710,2.2481,164.58,164.53,2.5887]
[1717460612910,2.2481,164.58,164.54,5.25]
[1717460613136,2.248,164.59,164.54,7.4986]
[1717460613358,2.248,164.59,164.54,16.62135524]
[1717460613726,2.2481,164.58,164.54,22.71815524]
[1717460613925,2.248,164.59,164.55,5.25]
[1717460614231,20.0,164.6,164.56,5.08]
[1717460614434,2.2478,164.61,164.57,5.08]
[1717460614645,20.0,164.63,164.59,5.08]
[1717460614850,2.2474,164.63,164.59,5.08]
[1717460615717,2.2474,164.63,164.59,11.1351]
[1717460615938,5.08,164.66,164.6,5.08]
[1717460616148,2.2473,164.64,164.6,5.08]
[1717460618230,20.0,164.65,164.59,6.0551]
[1717460618437,25.08,164.65,164.59,11.1351]
[1717460618629,2.2475,164.63,164.59,11.1351]
[1717460618831,2.2473,164.64,164.59,13.383]
[1717460619622,2.2473,164.64,164.6,5.08]
[1717460620431,22.2472,164.65,164.6,13.9661]
[1717460620634,2.2472,164.65,164.61,5.08]
[1717460620844,22.247,164.66,164.62,5.08]
[1717460621148,2.2471,164.65,164.62,5.08]
[1717460621348,4.4931,164.7,164.62,5.08]
[1717460621525,2.2469,164.67,164.62,7.3275]
[1717460621849,2.2469,164.67,164.64,5.08]
[1717460622221,24.4934,164.69,164.63,6.6383]
[1717460622419,2.2472,164.65,164.62,5.08]
[1717460622622,2.2472,164.65,164.61,11.489]
[1717460622852,2.2472,164.65,164.62,0.17]
[1717460623024,2.247,164.66,164.62,0.17]
[1717460623452,2.2472,164.65,164.62,0.17]
[1717460623747,2.2472,164.65,164.62,5.25]
[1717460624166,2.2471,164.66,164.62,5.25]
[1717460624829,2.2471,164.66,164.62,11.3653]
[1717460625349,20.0,164.66,164.62,13.6128]
[1717460625653,2.2469,164.67,164.63,11.4422]
[1717460625824,22.2469,164.67,164.63,6.3622]
[1717460626221,2.247,164.66,164.63,11.4422]
[1717460626427,9.5732,164.7,164.63,11.4422]
[1717460626642,2.2468,164.68,164.63,13.6895]
[1717460626844,2.2467,164.69,164.65,5.08]
[1717460627051,2.2468,164.68,164.65,5.08]
[1717460627225,2.2468,164.68,164.64,11.4422]
[1717460627421,2.2469,164.67,164.64,11.4422]
[1717460628770,2.2467,164.69,164.65,5.08]
[1717460629356,2.2467,164.68,164.65,5.08]
[1717460629740,2.2469,164.67,164.64,6.3622]
[1717460630049,2.2469,164.67,164.64,11.4422]
[1717460630248,2.2468,164.68,164.64,11.4422]
[1717460630650,2.2468,164.68,164.65,5.08]
[1717460632459,2.2468,164.68,164.64,6.3622]
[1717460632766,2.2468,164.68,164.65,5.08]
[1717460633173,2.2469,164.67,164.65,5.08]
[1717460633845,2.2469,164.67,164.64,11.4422]
[1717460636130,5.08,164.69,164.63,0.17]
[1717460636357,5.08,164.69,164.62,0.17]
[1717460636358,2.2472,164.65,164.62,0.17]
[1717460636571,2.2472,164.65,164.61,0.34]
[1717460637961,2.2472,164.65,164.61,5.42]
[1717460639059,2.2472,164.65,164.61,7.6677]
[1717460639264,22.2471,164.66,164.61,7.6677]
[1717460640863,20.0,164.66,164.62,2.2475]
[1717460641065,20.0,164.66,164.63,2.2474]
[1717460641243,2.2468,164.68,164.63,13.9732]
[1717460641440,2.2469,164.67,164.63,11.7258]
[1717460642279,2.247,164.66,164.62,5.08]
[1717460642458,2.247,164.66,164.63,0.34]
[1717460644559,2.2472,164.65,164.6,2.2478]
[1717460644775,2.2472,164.65,164.61,0.34]
[1717460645158,2.2472,164.65,164.61,2.5877]
[1717460645752,22.2471,164.66,164.61,2.5877]
[1717460645977,20.0,164.66,164.63,5.08]
[1717460646173,2.2469,164.67,164.63,5.08]
[1717460646890,2.2469,164.67,164.62,13.4908]
[1717460647053,2.2469,164.67,164.63,0.34]
[1717460648250,20.0,164.68,164.64,8.4844]
[1717460648591,2.2467,164.69,164.65,0.17]
[1717460648957,2.2466,164.7,164.65,2.4171]
[1717460649163,2.2466,164.7,164.66,0.17]
[1717460649373,2.2466,164.69,164.66,0.17]
[1717460649674,2.2466,164.69,164.66,5.25]
[1717460649982,2.2465,164.7,164.66,5.25]
[1717460650683,2.2466,164.69,164.66,5.25]
[1717460650875,2.2466,164.69,164.67,0.17]
[1717460651182,6.7363,164.78,164.68,7.3266]
[1717460651357,2.2461,164.73,164.71,5.08]
[1717460651558,2.2462,164.72,164.69,0.17]
[1717460651757,2.2464,164.71,164.68,0.34]
[1717460652872,22.2462,164.73,164.68,5.42]
[1717460653070,10.7622,164.79,164.7,5.08]
[1717460653326,5.08,164.77,164.7,7.3264]
[1717460653461,2.2458,164.75,164.7,7.3264]
[1717460653966,2.2458,164.75,164.7,5.08]
[1717460654816,2.2458,164.75,164.7,7.3265]
[1717460655019,2.2458,164.75,164.71,0.34]
[1717460655312,5.08,164.77,164.71,0.34]
[1717460655313,2.2459,164.74,164.71,0.34]
[1717460655517,2.2458,164.75,164.71,0.34]
[1717460656518,22.2457,164.76,164.71,6.4944]
[1717460657195,20.0,164.76,164.72,5.08]
[1717460657513,2.2456,164.76,164.72,5.08]
[1717460658799,2.2456,164.76,164.73,0.17]
[1717460659015,2.2458,164.75,164.73,0.17]
[1717460659814,2.2457,164.76,164.73,0.17]
[1717460660993,22.2455,164.78,164.73,5.42]
[1717460661201,20.0,164.77,164.73,11.4739]
[1717460661419,2.2455,164.78,164.74,0.17]
[1717460661603,2.2455,164.77,164.74,0.17]
[1717460662533,2.2457,164.76,164.74,0.17]
[1717460662701,2.2457,164.76,164.73,11.4739]
[1717460667230,2.2454,164.78,164.74,5.08]
[1717460667428,2.2454,164.78,164.75,5.25]
[1717460667610,2.2454,164.78,164.75,5.08]
[1717460667808,22.2454,164.78,164.75,5.08]
[1717460668037,2.2454,164.78,164.75,5.08]
[1717460668232,2.2455,164.77,164.75,5.08]
[1717460668611,2.2454,164.78,164.75,5.08]
[1717460670312,2.2454,164.78,164.75,11.4592]
[1717460671407,2.2454,164.78,164.76,0.17]
[1717460674251,2.2454,164.78,164.76,0.34]
[1717460676331,2.2453,164.79,164.76,6.8371]
[1717460676745,2.2451,164.8,164.77,27.4023]
[1717460676946,2.2451,164.8,164.78,0.34]
[1717460677959,2.2452,164.79,164.78,0.34]
[1717460679135,2.2454,164.78,164.77,0.34]
[1717460679537,2.2453,164.79,164.77,0.34]
[1717460684257,2.2453,164.79,164.78,0.17]
[1717460684567,2.2454,164.78,164.76,0.34]
[1717460684763,25.08,164.8,164.76,0.17]
[1717460684960,2.2455,164.78,164.75,0.17]
[1717460685159,2.2455,164.77,164.74,5.42]
[1717460685544,2.2454,164.78,164.74,0.34]
[1717460686651,2.2455,164.77,164.74,0.34]
[1717460686854,2.2454,164.78,164.74,0.34]
[1717460687040,2.2453,164.79,164.74,7.6659]
[1717460688962,2.2453,164.79,164.75,7.3257]
[1717460689251,22.2453,164.79,164.76,0.34]
[1717460689464,2.2453,164.79,164.76,0.34]
[1717460689846,2.2452,164.8,164.76,0.34]
[1717460691454,2.2453,164.79,164.76,0.34]
[1717460691864,2.2453,164.79,164.77,0.17]
[1717460692084,2.2453,164.79,164.75,0.34]
[1717460692370,2.2454,164.78,164.74,2.2458]
[1717460692664,2.2454,164.78,164.74,7.3258]
[1717460693377,20.0,164.79,164.74,5.08]
[1717460693564,5.08,164.8,164.75,0.17]
[1717460693767,2.2454,164.78,164.75,0.17]
[1717460694374,2.2454,164.78,164.73,7.496]
[1717460694375,2.2454,164.78,164.74,0.17]
[1717460694773,20.0,164.79,164.74,0.17]
[1717460694949,2.2455,164.77,164.74,0.17]
[1717460698679,2.2455,164.77,164.74,5.25]
[1717460699173,4.4893,164.84,164.77,2.2454]
[1717460699377,9.5693,164.84,164.78,0.17]
[1717460699675,2.245,164.81,164.78,9.27147929]
[1717460700159,2.245,164.81,164.78,9.26748322]
[1717460700749,20.0,164.83,164.79,5.25]
[1717460700949,2.2448,164.83,164.8,0.17]
[1717460701569,4.4889,164.85,164.8,5.25]
[1717460701758,2.2448,164.83,164.8,5.25]
[1717460702472,2.2448,164.82,164.8,0.17]
[1717460704785,2.2447,164.83,164.8,0.17]
[1717460705353,2.2448,164.82,164.8,0.17]
[1717460705578,2.2448,164.82,164.79,5.42]
[1717460706177,20.0,164.84,164.8,5.08]
[1717460706362,18.5456,164.87,164.81,0.34]
[1717460706678,2.2445,164.85,164.81,5.42]
[1717460707114,22.2443,164.86,164.83,5.08]
[1717460707262,20.0,164.85,164.83,5.08]
[1717460707451,2.2443,164.86,164.83,5.08]
[1717460707665,2.2442,164.87,164.83,5.08]
[1717460708056,2.2442,164.87,164.85,5.08]
[1717460708258,20.0,164.89,164.86,0.17]
[1717460708467,22.244,164.89,164.86,5.25]
[1717460708764,2.244,164.89,164.87,0.17]
[1717460709155,2.2437,164.9,164.87,5.25]
[1717460709357,2.2437,164.9,164.88,0.17]
[1717460710268,2.2436,164.91,164.88,5.25]
[1717460710653,2.2436,164.91,164.88,0.17]
[1717460710870,15.00518327,164.96,164.9,5.08]
[1717460711063,2.2434,164.93,164.89,0.34]
[1717460711389,2.2432,164.94,164.9,5.42]
[1717460711567,2.2432,164.94,164.91,5.08]
[1717460712492,2.2431,164.95,164.92,5.25]
[1717460712695,2.2431,164.95,164.93,0.34]
[1717460712996,5.08,164.98,164.93,0.34]
[1717460712997,2.2432,164.94,164.93,0.17]
[1717460713285,2.2432,164.94,164.91,5.08]
[1717460713500,2.2432,164.94,164.92,0.17]
[1717460713802,2.2431,164.95,164.92,0.34]
[1717460714405,2.2432,164.94,164.91,0.34]
[1717460715003,2.2431,164.95,164.91,0.34]
[1717460715508,2.2432,164.94,164.91,0.34]
[1717460715675,2.2432,164.94,164.91,5.42]
[1717460715875,2.2431,164.95,164.91,5.42]
[1717460717907,2.2432,164.94,164.91,0.34]
[1717460718198,2.2432,164.94,164.89,2.2438]
[1717460718199,5.08,164.93,164.86,2.2442]
[1717460718504,2.2436,164.91,164.86,5.08]
[1717460718670,2.2439,164.89,164.84,27.97748322]
[1717460718875,20.0,164.91,164.85,142.6578]
[1717460719075,5.08,164.93,164.87,5.08]
[1717460719275,22.2435,164.92,164.87,5.08]
[1717460719485,2.2435,164.92,164.87,5.08]
[1717460719899,2.2437,164.9,164.85,181.3122]
[1717460720200,2.2437,164.9,164.86,0.17]
[1717460720401,2.2439,164.89,164.85,6.267]
[1717460720606,2.2438,164.9,164.85,11.347]
[1717460721307,2.2439,164.89,164.84,2.2445]
[1717460721514,2.2439,164.89,164.85,5.08]
[1717460721809,22.2437,164.91,164.86,0.17]
[1717460721980,22.2437,164.91,164.86,5.25]
[1717460722299,2.2435,164.92,164.87,5.08]
[1717460722602,2.2437,164.9,164.88,0.17]
[1717460723103,22.2435,164.92,164.88,0.17]
[1717460723280,22.2435,164.92,164.87,14.1298]
[1717460723488,2.2435,164.92,164.87,14.1298]
[1717460723689,2.2435,164.92,164.88,5.08]
[1717460724203,2.2436,164.91,164.89,0.34]
[1717460724779,2.2436,164.91,164.89,0.17]
[1717460724975,2.2436,164.91,164.87,5.08]
[1717460725182,2.2436,164.91,164.86,5.08]
[1717460725396,2.2438,164.9,164.86,5.08]
[1717460725612,2.2438,164.9,164.85,7.3244]
[1717460725908,7.3235,164.92,164.86,2.2442]
[1717460726203,2.2435,164.92,164.86,7.3242]
[1717460726508,20.0,164.91,164.87,5.42]
[1717460726879,2.2435,164.92,164.88,5.08]
[1717460727080,2.2436,164.91,164.89,0.34]
[1717460727309,2.2435,164.92,164.89,0.34]
[1717460727891,2.2436,164.91,164.89,0.17]
[1717460728204,2.2436,164.91,164.88,0.17]
[1717460728390,2.2436,164.91,164.87,0.34]
[1717460728595,22.2436,164.91,164.87,0.34]
[1717460729311,2.2437,164.9,164.88,0.17]
[1717460729496,2.2437,164.9,164.86,5.42]
[1717460729909,22.2436,164.91,164.86,7.6642]
[1717460730280,2.2437,164.9,164.86,0.34]
[1717460730492,2.2437,164.9,164.86,5.42]
[1717460731093,2.2436,164.91,164.86,5.42]
[1717460731415,2.2436,164.91,164.86,0.34]
[1717460733192,2.244,164.89,164.81,21.9742]
[1717460733397,7.324,164.89,164.83,7.3247]
[1717460733605,2.244,164.88,164.84,0.34]
[1717460735312,7.3242,164.87,164.82,2.2448]
[1717460736518,27.3241,164.88,164.83,2.5847]
[1717460738015,27.3241,164.88,164.83,0.34]
[1717460738424,2.2441,164.87,164.83,0.34]
[1717460741010,2.2443,164.86,164.83,0.34]
[1717460741908,2.2442,164.87,164.83,0.34]
[1717460742221,2.2442,164.87,164.83,2.5847]
[1717460742521,2.2439,164.89,164.84,7.3245]
[1717460742736,2.2439,164.89,164.85,0.34]
[1717460743429,2.244,164.88,164.85,0.34]
[1717460744439,20.0,164.89,164.85,0.34]
[1717460744605,2.2439,164.9,164.85,7.6643]
[1717460744950,22.41488327,164.97,164.86,7.3243]
[1717460744951,22.2437,164.91,164.86,7.3243]
[1717460745101,2.2438,164.9,164.87,0.34]
[1717460748026,2.2439,164.89,164.86,0.34]
[1717460748205,2.2439,164.89,164.87,0.17]
[1717460749410,2.2439,164.89,164.86,0.17]
[1717460754340,20.0,164.9,164.87,7.3241]
[1717460754541,5.08,164.94,164.88,0.34]
[1717460754836,2.2436,164.91,164.88,0.34]
[1717460756543,2.2437,164.9,164.88,0.34]
[1717460758628,2.2437,164.91,164.88,0.34]
[1717460759131,2.2435,164.92,164.88,5.42]
[1717460759534,2.2436,164.91,164.88,5.42]
[1717460760528,2.2436,164.91,164.88,0.34]
[1717460760737,2.2436,164.91,164.88,5.42]
[1717460761056,2.2435,164.92,164.88,5.42]
[1717460761254,22.2435,164.92,164.88,2.584]
[1717460761461,2.2435,164.92,164.89,5.08]
[1717460761752,2.2435,164.92,164.9,0.34]
[1717460763169,2.2434,164.93,164.9,0.34]
[1717460763459,2.2435,164.92,164.9,0.34]
[1717460764364,2.2436,164.91,164.9,0.17]
[1717460764664,2.2436,164.91,164.89,0.34]
[1717460764963,2.2436,164.91,164.88,0.34]
[1717460765132,2.2436,164.91,164.88,5.42]
[1717460765555,2.2436,164.91,164.88,0.34]
[1717460766955,5.08,164.91,164.85,9.07494523]
[1717460767286,2.2439,164.89,164.85,9.07494523]
[1717460767453,2.2439,164.89,164.84,11.31944523]
[1717460767653,2.2439,164.89,164.84,16.39944523]
[1717460767855,2.2439,164.89,164.84,7.3245]
[1717460768162,22.2438,164.9,164.85,2.4144]
[1717460768372,22.2438,164.9,164.86,0.17]
[1717460769775,2.2438,164.9,164.86,0.17]
[1717460770177,22.2438,164.9,164.86,0.17]
[1717460770494,2.2438,164.9,164.86,0.17]
[1717460770871,2.2439,164.89,164.86,0.17]
[1717460771252,5.08,164.89,164.84,9.07494523]
[1717460771459,2.2443,164.86,164.82,14.15494523]
[1717460771758,2.2443,164.86,164.82,16.39974523]
[1717460771986,22.2442,164.87,164.82,16.39974523]
[1717460772197,22.2442,164.87,164.82,7.3248]
[1717460772392,22.2442,164.87,164.82,16.39974523]
[1717460772566,22.2442,164.87,164.83,0.17]
[1717460772762,22.2442,164.87,164.83,7.4947]
[1717460772763,20.0,164.87,164.83,7.4947]
[1717460772971,2.2437,164.9,164.86,5.08]
[1717460773683,2.2439,164.89,164.85,0.17]
[1717460773890,2.2439,164.89,164.86,0.17]
[1717460774092,2.2439,164.89,164.86,0.34]
[1717460774295,22.2439,164.89,164.86,0.34]
[1717460774485,2.2439,164.89,164.86,0.34]
[1717460774697,2.2439,164.89,164.85,0.34]
[1717460774902,22.2439,164.89,164.85,0.34]
[1717460775501,20.0,164.89,164.85,9.41494523]
[1717460775703,2.2435,164.92,164.86,5.08]
[1717460776007,2.2436,164.91,164.87,0.34]
[1717460776598,2.2436,164.91,164.87,7.6641]
[1717460776899,20.0,164.92,164.87,7.6641]
[1717460776900,22.2435,164.92,164.87,7.6641]
[1717460778907,2.2436,164.91,164.87,11.9612]
[1717460780998,2.2436,164.91,164.87,14.2053]
[1717460781196,20.0,164.93,164.87,14.2053]
[1717460781407,20.0,164.93,164.89,7.3238]
[1717460781608,2.2433,164.94,164.9,0.34]
[1717460782014,2.2433,164.94,164.9,5.42]
[1717460782916,2.2433,164.94,164.9,14.49494523]
[1717460783591,2.2434,164.93,164.9,14.49494523]
[1717460784291,2.2434,164.93,164.9,9.41494523]
[1717460784710,2.2434,164.93,164.9,14.49494523]
[1717460784904,2.2434,164.93,164.9,9.41494523]
[1717460785915,2.2434,164.93,164.9,0.34]
[1717460786221,2.2434,164.93,164.9,5.42]
[1717460793701,29.5663,164.95,164.9,0.34]
[1717460793894,2.2436,164.91,164.89,0.34]
[1717460794121,2.2436,164.91,164.88,0.34]
[1717460794623,2.2438,164.9,164.87,9.0732451]
[1717460794922,2.2439,164.89,164.85,7.3243]
[1717460795437,2.2438,164.9,164.85,7.3243]
[1717460795604,2.2438,164.9,164.85,16.3975451]
[1717460795804,2.2439,164.89,164.85,16.3975451]
[1717460796109,2.2438,164.9,164.85,16.3975451]
[1717460796439,2.2438,164.9,164.86,0.17]
[1717460797000,2.2438,164.9,164.86,2.4142]
[1717460797200,2.2438,164.9,164.87,0.17]
[1717460799743,22.2437,164.91,164.87,0.17]
[1717460800038,2.2437,164.91,164.87,0.17]
[1717460800528,22.2437,164.91,164.87,0.17]
[1717460803502,22.2437,164.91,164.87,7.4941]
[1717460803708,2.2435,164.92,164.88,0.17]
[1717460810439,2.2435,164.92,164.88,5.25]
[1717460810612,2.2436,164.91,164.89,0.17]
[1717460812251,2.2435,164.92,164.88,0.34]
[1717460813439,2.2435,164.92,164.88,5.42]
[1717460814449,2.2435,164.92,164.88,0.34]
[1717460814639,2.2435,164.92,164.88,5.42]
[1717460815637,20.0,164.93,164.9,5.08]
[1717460815847,2.2433,164.94,164.91,0.34]
[1717460816332,2.2434,164.93,164.91,0.34]
[1717460817443,2.2431,164.95,164.91,0.34]
[1717460817644,2.2431,164.95,164.92,5.08]
[1717460817817,22.2431,164.95,164.93,0.34]
[1717460818341,2.2431,164.95,164.93,0.34]
[1717460825143,2.243,164.96,164.93,0.34]
[1717460825620,2.243,164.96,164.92,0.34]
[1717460825828,2.2431,164.95,164.92,9.4132451]
[1717460827950,2.2431,164.95,164.92,5.42]
[1717460828552,2.2432,164.94,164.92,0.34]
[1717460829240,2.2432,164.94,164.93,0.34]
[1717460829545,2.2432,164.94,164.91,0.34]
[1717460830725,2.2432,164.94,164.92,0.34]
[1717460831043,2.2432,164.94,164.9,7.6637]
[1717460831559,2.2433,164.93,164.9,5.42]
[1717460831846,2.2433,164.94,164.9,5.42]
[1717460832456,2.2433,164.94,164.9,7.6637]
[1717460833624,2.2433,164.94,164.9,2.5837]
[1717460833824,20.0,164.95,164.88,9.07337482]
[1717460834050,7.3235,164.92,164.88,9.07337482]
[1717460834460,2.2434,164.93,164.88,2.244]
[1717460834625,7.3234,164.93,164.88,2.244]
[1717460835139,7.3234,164.93,164.89,0.17]
[1717460835451,7.3234,164.93,164.89,0.34]
[1717460837046,2.2434,164.93,164.89,0.34]
[1717460837244,2.2434,164.93,164.89,2.5838]
[1717460837536,2.2433,164.94,164.89,7.6638]
[1717460837861,2.2433,164.93,164.89,7.6638]
[1717460838550,2.2433,164.93,164.89,0.34]
[1717460838742,2.2435,164.92,164.89,0.34]
[1717460839623,22.2434,164.93,164.89,2.5838]
[1717460841071,22.2434,164.93,164.89,0.34]
[1717460841672,2.2435,164.92,164.89,0.34]
[1717460842646,22.2434,164.93,164.89,0.34]
[1717460842841,7.3234,164.93,164.89,9.41337482]
[1717460843042,2.2435,164.92,164.89,9.41337482]
[1717460843243,2.2433,164.94,164.89,11.65707482]
[1717460843473,7.3233,164.93,164.89,11.65707482]
[1717460843680,7.3233,164.94,164.89,11.65707482]
[1717460843849,5.08,164.94,164.89,11.65594467]
[1717460844051,20.0,164.93,164.89,11.65594467]
[1717460844249,22.2434,164.93,164.89,9.41224467]
[1717460845482,2.243,164.96,164.9,5.08]
[1717460845641,2.2431,164.95,164.91,2.5835]
[1717460845842,2.2431,164.95,164.91,11.65574467]
[1717460847670,2.2431,164.95,164.91,9.41224467]
[1717460848369,2.2431,164.95,164.91,134.49224467]
[1717460848575,2.243,164.96,164.91,136.73584467]
[1717460848891,2.243,164.96,164.91,142.76504467]
[1717460849058,2.243,164.96,164.91,133.6928]
[1717460849261,2.243,164.96,164.92,2.2434]
[1717460849570,2.243,164.96,164.93,0.34]
[1717460849774,2.243,164.96,164.94,0.34]
[1717460849972,2.243,164.96,164.91,133.6927]
[1717460851781,2.2431,164.95,164.91,133.6927]
[1717460852086,2.2431,164.95,164.91,11.4492]
[1717460852465,2.2432,164.94,164.91,0.34]
[1717460855080,22.2431,164.95,164.91,0.34]
[1717460855384,2.2431,164.95,164.91,0.34]
[1717460856697,2.243,164.96,164.91,2.5836]
[1717460857575,2.243,164.96,164.91,8.9124]
[1717460857776,2.243,164.96,164.91,13.9924]
[1717460858394,2.2431,164.95,164.91,11.7488]
[1717460858566,2.243,164.96,164.91,13.9924]
[1717460859584,2.2431,164.95,164.91,11.7488]
[1717460860191,2.2431,164.95,164.91,131.7488]
[1717460862368,22.2429,164.97,164.92,6.3719]
[1717460862579,2.2427,164.98,164.94,5.08]
[1717460862888,2.2427,164.98,164.95,0.34]
[1717460863181,4.4843,165.02,164.95,0.34]
[1717460863380,2.2424,165.0,164.96,5.08]
[1717460863592,2.2424,165.0,164.97,0.34]
[1717460866474,2.2424,165.0,164.96,5.42]
[1717460867587,2.2425,164.99,164.96,5.42]
[1717460867791,2.2427,164.98,164.96,0.34]
[1717460868092,2.2425,164.99,164.95,0.34]
[1717460869170,2.2425,164.99,164.95,5.42]
[1717460869781,2.2425,164.99,164.95,0.34]
[1717460873408,22.2424,165.0,164.95,0.34]
[1717460874086,22.2424,165.0,164.95,5.42]
[1717460874087,2.2424,165.0,164.95,5.42]
[1717460877711,2.2425,164.99,164.95,5.42]
[1717460878199,2.2425,164.99,164.95,0.34]
[1717460880023,2.2425,164.99,164.95,0.17]
[1717460880221,20.0,165.02,164.92,9.05925573]
[1717460880222,2.243,164.96,164.92,9.05925573]
[1717460880505,2.2432,164.95,164.9,5.08]
[1717460881001,7.323,164.96,164.9,7.3237]
[1717460881201,2.243,164.96,164.9,127.3237]
[1717460881500,2.2431,164.95,164.9,122.2437]
[1717460881701,2.2431,164.95,164.91,0.34]